bitfinex/quotes_SOLUSD_20251204
["timestamp","ask_amount","ask_price","bid_price","bid_amount"]
[1764875656521,12.42314452,139.17,139.12,0.66]
[1764875656856,12.42314452,139.13,139.12,0.66]
[1764875657037,20.72314452,139.13,139.05,7.19114438]
[1764875657210,12.42314452,139.07,139.04,0.66]
[1764875657415,16.308864,139.1,139.04,0.66]
[1764875657642,0.99999999,139.18,139.04,25.83261219]
[1764875657833,12.42314452,139.2,139.07,12.42314452]
[1764875657834,12.42314452,139.14,139.07,12.42314452]
[1764875658033,12.42314452,139.13,139.07,12.42314452]
[1764875658217,16.308864,139.16,139.09,7.18958947]
[1764875658418,16.308864,139.19,139.11,12.42314452]
[1764875658623,20.72314452,139.18,139.12,12.42314452]
[1764875658827,12.42314452,139.16,139.1,0.66]
[1764875659030,12.42314452,139.13,139.1,0.66]
[1764875659529,12.42314452,139.14,139.1,0.66]
[1764875659727,12.42314452,139.13,139.1,0.66]
[1764875660041,12.42314452,139.13,139.1,7.84878226]
[1764875660340,12.42314452,139.13,139.1,0.66]
[1764875660511,12.42314452,139.12,139.1,0.66]
[1764875660727,7.1851864,139.18,139.1,7.848972]
[1764875660928,24.608864,139.17,139.11,12.42314452]
[1764875661153,37.03200852,139.17,139.11,13.08314452]
[1764875661349,12.42314452,139.14,139.11,0.66]
[1764875661557,16.308864,139.17,139.1,7.18899303]
[1764875661756,25.14548758,139.19,139.1,7.18899303]
[1764875661757,12.42314452,139.18,139.12,13.08314452]
[1764875661930,49.75435158,139.19,139.12,0.66]
[1764875662131,12.42314452,139.16,139.12,7.84772556]
[1764875662362,12.59240655,139.16,139.12,7.84772556]
[1764875662527,12.59240655,139.18,139.13,0.66]
[1764875663032,8.3,139.19,139.13,0.66]
[1764875663235,8.3,139.19,139.14,12.59240655]
[1764875663463,12.59240655,139.21,139.15,12.59240655]
[1764875663755,17.95130773,139.27,139.18,12.59240655]
[1764875663967,12.59240655,139.24,139.18,12.59240655]
[1764875664168,8.3,139.25,139.2,12.59240655]
[1764875664331,8.3,139.25,139.21,0.66]
[1764875664526,7.8,139.25,139.21,0.66]
[1764875664754,12.59240655,139.27,139.21,0.66]
[1764875664955,12.59240655,139.27,139.21,13.25240655]
[1764875665150,7.17936543,139.29,139.21,13.25240655]
[1764875665347,24.608864,139.3,139.22,13.25240655]
[1764875665661,12.59240655,139.27,139.22,0.66]
[1764875665847,12.59240655,139.28,139.23,0.66]
[1764875666044,12.59240655,139.28,139.23,7.84186827]
[1764875666247,7.17669011,139.34,139.25,12.59240655]
[1764875666440,7.17669011,139.34,139.24,13.25240655]
[1764875666441,12.59240655,139.3,139.24,13.25240655]
[1764875666640,12.59240655,139.3,139.24,0.66]
[1764875666846,12.59240655,139.29,139.25,0.66]
[1764875667140,12.59240655,139.29,139.2,8.80994492]
[1764875667141,12.59240655,139.26,139.2,0.66]
[1764875667342,12.59240655,139.25,139.21,0.66]
[1764875667532,8.3,139.29,139.21,0.66]
[1764875667734,8.3,139.29,139.13,242.79999999]
[1764875667735,12.59240655,139.26,139.13,242.79999999]
[1764875667933,12.59240655,139.23,139.18,0.66]
[1764875668148,12.59240655,139.25,139.19,25.14548458]
[1764875668356,7.17978173,139.28,139.2,0.66]
[1764875668867,12.59240655,139.27,139.2,13.25240655]
[1764875669064,16.308864,139.31,139.19,25.14548458]
[1764875669065,12.59240655,139.28,139.21,0.66]
[1764875669239,12.59240655,139.28,139.21,21.55240655]
[1764875669447,7.17764935,139.33,139.24,12.59240655]
[1764875669670,35.87549148,139.38,139.22,0.66]
[1764875669671,7.17662257,139.35,139.25,12.59240655]
[1764875669839,17.9371681,139.38,139.27,12.59240655]
[1764875669840,12.59240655,139.34,139.27,12.59240655]
[1764875670041,12.59240655,139.35,139.29,7.17926627]
[1764875670266,20.89240655,139.36,139.29,37.15883851]
[1764875670462,7.1747685,139.38,139.3,13.25240655]
[1764875670635,12.59240655,139.39,139.32,12.59240655]
[1764875670834,12.59240655,139.39,139.29,33.37637688]
[1764875670835,12.59240655,139.39,139.33,12.59240655]
[1764875671060,12.59240655,139.39,139.34,0.66]
[1764875671849,12.59240655,139.38,139.34,7.83660428]
[1764875672070,12.59240655,139.35,139.32,7.17770681]
[1764875672261,41.41466701,139.41,139.33,0.66]
[1764875672566,12.59240655,139.36,139.33,0.66]
[1764875672754,12.59240655,139.34,139.3,0.66]
[1764875672956,8.28,139.37,139.3,0.66]
[1764875672957,12.59240655,139.33,139.3,0.66]
[1764875673251,12.59240655,139.33,139.26,12.59240655]
[1764875673252,12.59240655,139.31,139.27,0.66]
[1764875673452,12.59240655,139.33,139.29,7.17915582]
[1764875673658,8.28,139.35,139.29,7.17915582]
[1764875673856,12.59240655,139.32,139.29,0.66]
[1764875674166,15.45710255,139.34,139.3,0.66]
[1764875674358,12.59240655,139.31,139.3,0.66]
[1764875675064,12.59240655,139.31,139.27,7.84029726]
[1764875675253,33.39882782,139.34,139.27,0.66]
[1764875675576,12.59240655,139.3,139.27,0.66]
[1764875675772,33.39882782,139.34,139.27,0.66]
[1764875675950,12.59240655,139.3,139.27,7.83984788]
[1764875676466,12.59240655,139.28,139.27,0.66]
[1764875676668,12.59240655,139.28,139.21,0.66]
[1764875676987,12.59240655,139.22,139.21,0.66]
[1764875677154,8.28,139.26,139.21,0.66]
[1764875677473,8.28,139.26,139.21,7.84338918]
[1764875677648,12.59240655,139.27,139.21,38.39427572]
[1764875677848,12.59240655,139.27,139.19,8.80994492]
[1764875677849,12.59240655,139.28,139.23,7.18236012]
[1764875678071,12.59240655,139.26,139.23,7.18236012]
[1764875678576,15.45939758,139.29,139.24,0.66]
[1764875678577,12.59240655,139.29,139.24,0.66]
[1764875679084,12.59240655,139.3,139.24,0.66]
[1764875679749,12.59240655,139.25,139.17,8.80994492]
[1764875680065,17.9497654,139.28,139.19,25.14539769]
[1764875680383,12.59240655,139.27,139.2,0.66]
[1764875680556,12.59240655,139.26,139.2,13.25240655]
[1764875680759,24.588864,139.3,139.21,12.59240655]
[1764875680760,23.48768319,139.3,139.21,12.59240655]
[1764875680957,12.59240655,139.29,139.22,12.59240655]
[1764875681167,35.87572167,139.38,139.19,25.80539769]
[1764875681168,12.59240655,139.24,139.19,25.80539769]
[1764875681369,8.28,139.27,139.2,0.66]
[1764875681569,12.59240655,139.21,139.17,7.18533733]
[1764875681785,12.59240655,139.21,139.18,7.84490305]
[1764875681962,12.59240655,139.2,139.18,7.84491588]
[1764875682160,23.4908591,139.24,139.18,7.84491588]
[1764875682361,23.4908591,139.24,139.18,0.66]
[1764875682362,12.59240655,139.2,139.18,0.66]
[1764875682565,12.59240655,139.19,139.15,0.72]
[1764875682772,12.59240655,139.18,139.14,18.68713769]
[1764875682969,12.59240655,139.19,139.18,7.18494036]
[1764875683174,12.59240655,139.2,139.18,7.84494036]
[1764875683563,12.59240655,139.21,139.19,0.66]
[1764875683766,23.4908591,139.24,139.19,0.66]
[1764875684099,12.59240655,139.21,139.19,7.84405917]
[1764875684305,12.59240655,139.2,139.19,0.66]
[1764875684463,12.59240655,139.2,139.14,7.18688534]
[1764875684667,12.59240655,139.17,139.15,0.66]
[1764875685280,16.308864,139.2,139.15,0.66]
[1764875685587,12.59240655,139.17,139.15,0.66]
[1764875685968,7.18445571,139.19,139.15,7.8464692]
[1764875686183,31.77292614,139.2,139.15,7.8464692]
[1764875686388,12.59240655,139.19,139.16,0.66]
[1764875686696,44.70906704,139.28,139.16,0.66]
[1764875686697,16.308864,139.23,139.16,0.66]
[1764875686912,12.59240655,139.2,139.16,0.66]
[1764875687605,16.308864,139.23,139.15,25.15269269]
[1764875687774,12.59240655,139.2,139.16,0.66]
[1764875687974,12.59240655,139.2,139.17,7.18545663]
[1764875688490,12.59240655,139.2,139.18,0.66]
[1764875689071,12.59240655,139.22,139.18,0.66]
[1764875689278,26.2325974,139.26,139.18,0.66]
[1764875689494,12.59240655,139.2,139.17,6.68545663]
[1764875689697,12.59240655,139.21,139.17,7.34545663]
[1764875689876,25.13480505,139.25,139.17,7.34545663]
[1764875689877,12.59240655,139.22,139.18,0.66]
[1764875690086,12.59240655,139.22,139.19,7.18442416]
[1764875690382,12.59240655,139.23,139.19,7.18442416]
[1764875690578,12.59240655,139.21,139.19,0.66]
[1764875690791,12.59240655,139.2,139.17,7.84511793]
[1764875690995,12.59240655,139.21,139.18,7.18486819]
[1764875691316,7.18151374,139.25,139.18,7.84486819]
[1764875691611,7.18151374,139.25,139.19,0.66]
[1764875691612,8.26,139.24,139.19,0.66]
[1764875691803,12.59240655,139.23,139.19,0.66]
[1764875691991,7.18151374,139.25,139.19,0.66]
[1764875692309,12.59240655,139.25,139.2,7.18390804]
[1764875692620,12.59240655,139.21,139.17,7.18509578]
[1764875692793,12.59240655,139.18,139.15,0.66]
[1764875692989,12.59240655,139.17,139.15,0.66]
[1764875693189,12.59240655,139.16,139.12,0.66]
[1764875693407,12.59240655,139.13,139.09,7.18958947]
[1764875693587,12.59240655,139.12,139.1,0.66]
[1764875694013,8.26,139.18,139.1,0.66]
[1764875694208,12.59240655,139.11,139.08,0.66]
[1764875694417,7.18545663,139.17,139.02,35.96510707]
[1764875694418,10.85998553,139.1,139.04,19.13998553]
[1764875694610,10.85998553,139.09,139.04,8.28]
[1764875694791,10.85998553,139.08,139.05,0.66]
[1764875695108,10.85998553,139.09,139.05,0.66]
[1764875695313,10.85998553,139.1,139.05,25.33080186]
[1764875695612,8.28,139.14,139.05,7.19165767]
[1764875695613,10.85998553,139.08,139.05,7.19165767]
[1764875696415,10.85998553,139.09,139.03,25.17390355]
[1764875696796,10.85998553,139.08,139.03,25.17390355]
[1764875697114,7.1884711,139.12,139.03,25.17390355]
[1764875697313,10.85998553,139.09,139.04,0.66]
[1764875697822,10.85998553,139.09,139.05,7.19165767]
[1764875698018,10.85998553,139.06,139.0,2.0]
[1764875698317,10.85998553,139.01,139.0,2.0]
[1764875698987,0.5,139.06,139.0,2.0]
[1764875698988,10.85998553,139.02,139.0,2.0]
[1764875699188,10.85998553,139.03,139.0,2.0]
[1764875699607,10.85998553,139.03,139.0,2.66]
[1764875699916,10.85998553,139.05,139.01,7.85328175]
[1764875700088,10.85998553,139.07,139.01,25.83759942]
[1764875700287,10.85998553,139.07,139.02,0.66]
[1764875700491,10.85998553,139.1,139.02,0.66]
[1764875700708,10.85998553,139.07,139.02,0.66]
[1764875700912,10.85998553,139.06,139.02,0.66]
[1764875701085,0.5,139.14,139.02,0.66]
[1764875701289,7.18597298,139.16,139.07,10.85998553]
[1764875701490,0.5,139.17,139.09,10.85998553]
[1764875701491,10.85998553,139.15,139.09,10.85998553]
[1764875701690,7.18551702,139.17,139.08,10.85998553]
[1764875701945,10.85998553,139.14,139.09,25.16356315]
[1764875702103,7.18551702,139.17,139.09,25.82356315]
[1764875702298,10.85998553,139.14,139.09,25.82356315]
[1764875702499,7.18551702,139.17,139.09,25.16356315]
[1764875702808,10.85998553,139.17,139.1,11.51998553]
[1764875702994,10.85998553,139.16,139.1,0.66]
[1764875703194,10.85998553,139.16,139.11,0.66]
[1764875703491,10.85998553,139.15,139.11,0.66]
[1764875703901,10.85998553,139.17,139.12,7.1880391]
[1764875704088,10.85998553,139.13,139.07,0.66]
[1764875704287,7.68564609,139.17,139.07,0.66]
[1764875704288,10.85998553,139.12,139.07,18.6360816]
[1764875704517,10.85998553,139.12,139.08,0.66]
[1764875704712,25.14928767,139.17,139.08,0.66]
[1764875704713,25.14928767,139.17,139.08,18.6342668]
[1764875705019,10.85998553,139.15,139.11,7.18851384]
[1764875705190,10.85998553,139.13,139.09,0.66]
[1764875705400,25.14740969,139.18,139.09,11.51998553]
[1764875705728,10.85998553,139.16,139.11,7.18814431]
[1764875705930,10.85998553,139.16,139.11,25.15953385]
[1764875706129,10.85998553,139.17,139.12,0.66]
[1764875706340,7.68406458,139.2,139.12,0.66]
[1764875706643,17.95737546,139.22,139.12,0.66]
[1764875706644,8.28,139.21,139.12,0.66]
[1764875706936,10.85998553,139.18,139.12,11.51998553]
[1764875707138,10.85998553,139.19,139.12,0.66]
[1764875707346,10.85998553,139.13,139.11,7.18814431]
[1764875707641,10.85998553,139.12,139.09,7.18955553]
[1764875707846,10.85998553,139.12,139.1,7.18884697]
[1764875708058,10.85998553,139.13,139.08,0.66]
[1764875708219,110.23541327,139.31,139.08,0.66]
[1764875708220,10.85998553,139.18,139.11,10.85998553]
[1764875708421,10.85998553,139.18,139.12,10.85998553]
[1764875708621,10.85998553,139.18,139.09,8.28]
[1764875708622,7.18287602,139.22,139.13,11.51998553]
[1764875708823,10.85998553,139.22,139.15,10.85998553]
[1764875709047,10.85998553,139.21,139.15,10.85998553]
[1764875709218,10.85998553,139.21,139.16,0.66]
[1764875709422,15.46219168,139.24,139.16,0.66]
[1764875709624,0.5,139.28,139.2,10.85998553]
[1764875709829,5.65266256,139.33,139.16,8.94]
[1764875709830,10.85998553,139.22,139.16,0.66]
[1764875710053,10.85998553,139.21,139.17,7.18545663]
[1764875710222,10.85998553,139.18,139.13,0.66]
[1764875710423,25.13692743,139.24,139.13,0.66]
[1764875710424,10.85998553,139.17,139.14,7.18668093]
[1764875710629,24.588864,139.21,139.16,7.18595295]
[1764875710841,10.85998553,139.19,139.16,7.18595295]
[1764875711048,10.85998553,139.19,139.16,7.84595295]
[1764875711247,16.308864,139.14,139.07,0.66]
[1764875711451,16.308864,139.14,139.04,10.85998553]
[1764875711452,8.28,139.13,139.04,18.64007415]
[1764875711652,8.28,139.13,139.05,0.66]
[1764875711859,16.808864,139.14,139.07,7.19056056]
[1764875712154,15.46752246,139.13,139.06,7.19114051]
[1764875712347,10.85998553,139.08,139.06,7.19114051]
[1764875712550,33.43632861,139.13,139.06,7.85114051]
[1764875712757,7.17288095,139.09,139.06,7.85114051]
[1764875712925,7.17288095,139.12,139.05,7.19158509]
[1764875713129,7.17288095,139.08,139.04,0.72]
[1764875713343,7.17288095,139.08,139.05,7.19116204]
[1764875713649,16.808864,139.12,139.04,0.72]
[1764875713828,16.808864,139.12,139.05,7.19158866]
[1764875714034,7.17288095,139.11,139.05,14.36446961]
[1764875714228,7.17288095,139.11,139.06,0.72]
[1764875714533,10.85886284,139.09,139.06,0.72]
[1764875714835,0.99999999,139.18,139.06,0.72]
[1764875714836,7.21328861,139.2,139.08,10.85886284]
[1764875715042,10.85886284,139.2,139.13,10.85886284]
[1764875715227,10.85886284,139.17,139.12,0.72]
[1764875715626,23.49232925,139.21,139.09,10.85886284]
[1764875715627,10.85886284,139.15,139.09,10.85886284]
[1764875715852,10.85886284,139.14,139.09,0.72]
[1764875716148,10.85886284,139.13,139.09,7.90947818]
[1764875716341,7.18721863,139.14,139.09,7.90947818]
[1764875716342,10.85886284,139.14,139.09,7.90947818]
[1764875716540,10.85886284,139.15,139.1,11.57886284]
[1764875716740,24.588864,139.18,139.11,10.85886284]
[1764875716929,10.85886284,139.17,139.11,11.57886284]
[1764875717134,8.28,139.18,139.13,10.85886284]
[1764875717343,10.85886284,139.18,139.14,0.72]
[1764875717541,10.85886284,139.15,139.11,0.72]
[1764875717951,10.85886284,139.16,139.11,0.72]
[1764875718147,10.85886284,139.15,139.11,0.72]
[1764875718339,10.85886284,139.13,139.09,7.18951151]
[1764875718728,8.78,139.17,139.05,0.72]
[1764875718729,10.85886284,139.1,139.05,0.72]
[1764875718935,10.85886284,139.08,139.05,7.91147475]
[1764875719342,10.85886284,139.09,139.05,7.19147475]
[1764875719529,10.85886284,139.08,139.06,0.72]
[1764875719934,10.85886284,139.07,139.03,0.72]
[1764875720158,10.85886284,139.06,139.02,0.72]
[1764875720355,7.19070476,139.07,139.02,0.72]
[1764875720356,18.0495676,139.07,139.02,0.72]
[1764875720548,10.85886284,139.05,139.01,7.19372706]
[1764875720750,10.85886284,139.05,139.01,7.91372706]
[1764875720951,10.85886284,139.04,139.01,0.72]
[1764875721152,7.69070476,139.07,139.0,2.0]
[1764875721153,10.85886284,139.02,139.0,2.0]
[1764875721358,10.85886284,139.01,139.0,2.0]
[1764875721960,10.85886284,139.02,139.0,2.0]
[1764875722260,15.45372706,139.01,139.0,1.9]
[1764875722438,19.11886284,139.01,139.0,1.9]
[1764875722758,24.588864,139.05,139.0,9.81420498]
[1764875722962,10.85886284,139.06,139.01,10.85886284]
[1764875723163,10.85886284,139.04,139.0,9.81420498]
[1764875723375,10.85886284,139.01,139.0,1.9]
[1764875724057,10.85886284,139.07,139.0,9.81416881]
[1764875724253,15.46902237,139.11,139.01,0.72]
[1764875724448,19.13886284,139.11,139.05,10.85886284]
[1764875724649,10.85886284,139.09,139.01,0.72]
[1764875724837,15.46898311,139.11,139.01,0.72]
[1764875724838,10.85886284,139.08,139.01,0.72]
[1764875725038,10.85886284,139.07,139.01,11.57886284]
[1764875725258,0.4,139.1,139.01,0.72]
[1764875725455,49.74923665,139.11,139.02,0.72]
[1764875725761,8.28,139.11,139.06,10.85886284]
[1764875725963,8.28,139.11,139.05,10.85886284]
[1764875726260,10.85886284,139.13,139.06,7.19114051]
[1764875726450,0.4,139.17,139.06,7.19114051]
[1764875726451,8.28,139.16,139.07,10.85886284]
[1764875726651,10.85886284,139.13,139.07,19.85886284]
[1764875726851,10.85886284,139.13,139.08,0.72]
[1764875727241,10.85886284,139.12,139.08,0.72]
[1764875727446,10.85886284,139.13,139.08,0.72]
[1764875727647,10.85886284,139.12,139.08,0.72]
[1764875727843,10.85886284,139.1,139.06,7.19114051]
[1764875728059,18.04862991,139.09,139.05,0.72]
[1764875728363,10.85886284,139.07,139.03,7.19229636]
[1764875728566,10.85886284,139.07,139.04,7.19208035]
[1764875728756,8.28,139.11,139.05,36.02929432]
[1764875728757,19.13886284,139.11,139.05,36.02929432]
[1764875728960,8.26,139.16,139.09,10.85886284]
[1764875729264,0.2,139.19,139.14,10.85886284]
[1764875729564,0.2,139.19,139.13,8.80994492]
[1764875729754,0.2,139.19,139.18,10.85886284]
[1764875729956,26.60981437,139.28,139.18,10.85886284]
[1764875729957,10.85886284,139.28,139.18,19.11886284]
[1764875730159,10.85886284,139.24,139.2,7.18385945]
[1764875730366,10.85886284,139.23,139.18,0.72]
[1764875730558,33.79104042,139.27,139.2,7.18349643]
[1764875730744,33.79104042,139.27,139.19,0.72]
[1764875730745,10.85886284,139.25,139.21,7.18338088]
[1764875731147,10.85886284,139.25,139.21,0.72]
[1764875731766,10.85886284,139.22,139.11,35.94064365]
[1764875731974,10.85886284,139.2,139.16,7.18559724]
[1764875732164,23.49189186,139.22,139.16,7.18559724]
[1764875732347,27.16772684,139.22,139.16,18.04446008]
[1764875732668,34.35067434,139.22,139.17,0.72]
[1764875732868,10.85886284,139.21,139.17,0.72]
[1764875733069,0.4,139.26,139.17,11.57886284]
[1764875733267,7.18042987,139.27,139.18,8.26]
[1764875733457,10.85886284,139.26,139.2,10.85886284]
[1764875733860,10.85886284,139.26,139.21,0.72]
[1764875734065,10.85886284,139.26,139.22,7.18287602]
[1764875734367,10.85886284,139.28,139.23,10.85886284]
[1764875734671,10.85886284,139.28,139.23,0.72]
[1764875734868,10.85886284,139.3,139.24,11.57886284]
[1764875735049,7.376782,139.34,139.24,0.72]
[1764875735249,10.85886284,139.31,139.26,10.85886284]
[1764875735451,7.376782,139.34,139.27,10.85886284]
[1764875735650,10.85886284,139.33,139.27,10.85886284]
[1764875735868,10.85886284,139.33,139.25,8.26]
[1764875735869,0.2,139.34,139.29,10.85886284]
[1764875736070,10.85886284,139.31,139.25,0.72]
[1764875736248,25.12185224,139.33,139.22,25.14006607]
[1764875736449,16.308864,139.3,139.23,0.72]
[1764875736648,7.15206318,139.27,139.23,0.72]
[1764875736848,8.26,139.31,139.23,7.87206318]
[1764875737063,7.15206318,139.3,139.24,7.15206318]
[1764875737265,7.15206318,139.3,139.24,7.87206318]
[1764875737475,7.15206318,139.27,139.22,7.90287602]
[1764875737778,7.15206318,139.27,139.23,0.72]
[1764875738364,10.83328181,139.28,139.23,7.90189416]
[1764875738568,10.83328181,139.28,139.23,18.73517597]
[1764875738765,10.83328181,139.28,139.24,0.72]
[1764875738966,7.17889248,139.3,139.24,0.72]
[1764875739275,10.83328181,139.3,139.24,11.55328181]
[1764875739483,10.83328181,139.29,139.24,11.55328181]
[1764875739774,10.83328181,139.25,139.21,0.72]
[1764875739963,10.83328181,139.24,139.21,0.72]
[1764875740274,10.83328181,139.25,139.21,7.90331175]
[1764875740476,8.80994492,139.32,139.21,7.90331175]
[1764875740477,7.17913799,139.3,139.24,10.83328181]
[1764875740777,10.83328181,139.29,139.23,10.83328181]
[1764875741078,10.83328181,139.29,139.24,10.83328181]
[1764875741877,10.83328181,139.3,139.25,18.73446863]
[1764875742074,10.83328181,139.29,139.25,0.72]
[1764875742272,10.83328181,139.27,139.23,7.90223628]
[1764875742459,10.83328181,139.28,139.25,7.18127548]
[1764875742663,10.83328181,139.29,139.25,7.89127548]
[1764875742975,0.4,139.29,139.21,11.49328181]
[1764875743184,10.83328181,139.26,139.22,7.18252619]
[1764875743388,10.83328181,139.27,139.22,7.18252619]
[1764875743690,7.17926627,139.29,139.24,18.01508407]
[1764875743883,19.09328181,139.3,139.25,10.83328181]
[1764875744061,10.83328181,139.29,139.24,18.67508407]
[1764875744385,26.27217566,139.3,139.25,11.49328181]
[1764875744895,15.43879365,139.3,139.26,0.66]
[1764875745064,10.83328181,139.27,139.22,7.18280111]
[1764875745260,0.4,139.29,139.21,0.66]
[1764875745480,10.83328181,139.25,139.21,7.84323899]
[1764875745655,7.17978173,139.28,139.19,19.09328181]
[1764875745861,10.83328181,139.26,139.2,18.67718985]
[1764875746086,10.83328181,139.27,139.22,10.83328181]
[1764875746571,10.83328181,139.25,139.21,8.9]
[1764875746883,10.83328181,139.26,139.21,19.73328181]
[1764875747062,10.83328181,139.25,139.2,7.84390804]
[1764875747266,10.83328181,139.26,139.21,11.49328181]
[1764875747477,25.12761444,139.29,139.22,10.83328181]
[1764875747676,18.01269802,139.29,139.24,7.18184429]
[1764875747857,10.83328181,139.28,139.24,7.18184429]
[1764875748569,7.17941621,139.29,139.25,0.66]
[1764875748772,10.83328181,139.29,139.25,0.66]
[1764875749183,19.09328181,139.3,139.25,11.49328181]
[1764875749701,19.09328181,139.3,139.26,0.66]
[1764875749891,8.26,139.3,139.27,7.18029726]
[1764875750084,19.09328181,139.3,139.27,7.18029726]
[1764875750575,10.83328181,139.29,139.26,7.18061861]
[1764875750784,10.83328181,139.28,139.25,7.18123198]
[1764875751201,10.83328181,139.29,139.26,7.18071679]
[1764875751386,8.26,139.3,139.26,18.6739986]
[1764875751694,10.83328181,139.31,139.27,0.66]
[1764875751898,10.83328181,139.31,139.27,7.83980969]
[1764875752195,16.708864,139.3,139.22,0.66]
[1764875752377,16.308864,139.3,139.23,11.49328181]
[1764875752695,10.83328181,139.31,139.26,10.83328181]
[1764875752882,33.76040261,139.33,139.25,10.83328181]
[1764875753194,10.83328181,139.3,139.25,10.83328181]
[1764875753390,10.83328181,139.3,139.25,11.49328181]
[1764875753571,10.83328181,139.3,139.26,0.66]
[1764875753766,10.83328181,139.3,139.27,7.18002762]
[1764875754001,25.12573553,139.3,139.24,7.1817489]
[1764875754308,7.17885829,139.3,139.24,17.95374295]
[1764875754475,18.01164712,139.31,139.26,7.18070213]
[1764875754673,7.5779312,139.32,139.26,7.18070213]
[1764875754984,10.83328181,139.31,139.26,18.67398394]
[1764875755184,10.83328181,139.32,139.27,11.49328181]
[1764875755379,10.83328181,139.32,139.28,0.66]
[1764875755582,26.25065494,139.33,139.28,11.49328181]
[1764875755790,8.24,139.33,139.28,11.49328181]
[1764875756095,26.25055428,139.33,139.29,7.17926627]
[1764875756398,27.97930858,139.33,139.29,7.17926627]
[1764875756696,15.41727247,139.33,139.29,7.17926627]
[1764875756878,0.2,139.34,139.3,0.66]
[1764875757082,0.2,139.34,139.29,37.68946807]
[1764875757083,19.93876227,139.34,139.29,37.68946807]
[1764875757296,0.2,139.34,139.3,0.66]
[1764875757502,0.4,139.33,139.28,7.17959241]
[1764875757709,0.4,139.33,139.27,7.84022343]
[1764875757911,12.56203611,139.31,139.27,7.84022343]
[1764875758079,12.76203611,139.34,139.29,12.56203611]
[1764875758278,0.2,139.34,139.3,0.66]
[1764875758499,0.2,139.34,139.3,13.22203611]
[1764875758697,0.2,139.34,139.31,0.66]
[1764875758905,0.2,139.34,139.31,13.22203611]
[1764875759104,0.2,139.34,139.32,12.56203611]
[1764875759306,0.2,139.34,139.32,13.22203611]
[1764875759484,0.2,139.34,139.33,13.22203611]
[1764875759888,0.2,139.34,139.33,20.3992413]
[1764875760405,8.62,139.42,139.33,46.43233573]
[1764875760607,8.62,139.42,139.34,13.09211755]
[1764875760812,12.43211755,139.41,139.36,12.43211755]
[1764875761109,12.43211755,139.39,139.35,0.66]
[1764875761306,8.62,139.42,139.35,0.66]
[1764875761307,8.22,139.42,139.35,0.66]
[1764875761816,8.22,139.42,139.3,28.74098155]
[1764875761817,12.43211755,139.37,139.32,7.17760783]
[1764875762016,8.22,139.38,139.31,20.2701798]
[1764875762521,12.43211755,139.37,139.32,13.09211755]
[1764875762721,8.22,139.38,139.32,13.09211755]
[1764875762919,33.33135457,139.38,139.32,0.66]
[1764875763083,0.4,139.37,139.3,7.17861074]
[1764875763413,0.4,139.37,139.31,7.17817155]
[1764875763621,12.43211755,139.34,139.31,7.17817155]
[1764875763919,7.17566016,139.36,139.3,7.83860436]
[1764875764130,12.43211755,139.34,139.3,7.83860436]
[1764875764419,7.17566016,139.36,139.3,7.83860436]
[1764875764587,12.43211755,139.34,139.3,7.83860436]
[1764875764785,12.43211755,139.34,139.3,7.17860436]
[1764875765024,12.43211755,139.31,139.27,17.95052177]
[1764875765320,12.43211755,139.3,139.28,7.17945771]
[1764875765622,12.43211755,139.29,139.26,7.18066177]
[1764875765822,0.72,139.32,139.26,7.18066177]
[1764875766031,12.43211755,139.29,139.25,7.18132854]
[1764875766195,7.17832485,139.31,139.25,7.18132854]
[1764875766398,12.43211755,139.29,139.25,25.1346499]
[1764875766721,8.22,139.34,139.26,0.66]
[1764875766936,12.43211755,139.3,139.26,0.66]
[1764875767425,12.43211755,139.29,139.25,25.1346499]
[1764875767636,0.72,139.33,139.26,0.66]
[1764875767805,25.11859896,139.34,139.25,7.18132854]
[1764875767806,12.43211755,139.28,139.25,7.18132854]
[1764875768128,7.17823558,139.31,139.24,25.13645503]
[1764875768427,7.17823558,139.31,139.24,7.18184429]
[1764875768635,8.2,139.34,139.24,7.18184429]
[1764875768636,12.43211755,139.3,139.25,13.09211755]
[1764875768839,12.43211755,139.28,139.24,7.18184429]
[1764875769051,12.43211755,139.26,139.13,75.0]
[1764875769214,12.43211755,139.25,139.2,12.43211755]
[1764875769403,12.43211755,139.26,139.23,7.18222621]